{"text_format":"3","workbook":"xlsx","n_sheets":3,"sheets":["Миль ара қашықтығы жұрналы","Жұрнал деректері","есептеулер"],"not_rendered":{"charts":1,"defined_names":17},"read":"whole","date_system":"1900"}

{"sheet":"Миль ара қашықтығы жұрналы","index":0,"n_rows":29,"n_cols":5,"rows_kept":29,"merged":[[0,1,1,7]]}
[null,"МИЛЬ АРА ҚАШЫҚТЫҒЫ ЖҰРНАЛЫ"]
{"$rows_empty":9}
[null,null,"ТӨЛЕНЕТІН",null,"БАРЛЫҒЫ"]
[null,null,"МИЛЬ",null,"ТӨЛЕНЕТІН"]
[]
[]
[]
[]
[null,null,"2012-05-01",null,"2012-05-10"]
[]
[null,null,"МЕРЗІМ",null,"МЕРЗІМ"]
[null,null,"БАСТАУ",null,"АЯҚТАУ"]
[]
[]
[]
[]
[]
[null,null,54,null,{"v":9800,"d":"9,800"}]
[]
[null,null,"ТӨЛЕНЕТІН",null,"АЛДЫҢҒЫ ЖАНАРМАЙ"]
[null,null,"¢/Миль",null,"ОДОМЕТР"]

{"sheet":"Жұрнал деректері","index":1,"n_rows":19,"n_cols":15,"rows_kept":19,"merged":[[0,1,1,6]]}
[null,"МИЛЬ АРА ҚАШЫҚТЫҒЫ ЖҰРНАЛЫ"]
[{"$nulls":14}," "]
[]
[]
[null,"КҮН","ӘРЕКЕТ","ОДОМЕТР 1","ОРЫН","ОДОМЕТР 2","МАҚСАТТАЛҒАН ОРЫН","ТӨЛЕНЕТІН","ГАЛЛОН","БАҒА","МИЛЬ","Миль/галлон","¢/МИЛЬ","ЕСКЕРТПЕЛЕР"]
[null,"2012-05-01","Саяхат",{"v":10123,"d":"10,123"},"Chevron - Main St",{"v":10130,"d":"10,130"},null,null,15.56,{"v":64.11,"d":"Т64.11"},{"$f":"милялар","v":7},{"$f":"IF(OR(LEN(деректер[[#This Row],[ОДОМЕТР 2]]),деректер[[#This Row],[ОДОМЕТР 1]]=\"\"),\"\",IFERROR(деректер[[#This Row],[МИЛЬ]]/деректер[[#This Row],[ГАЛЛОН]],\"\"))","v":""},{"$f":"IF(деректер[[#This Row],[Миль/галлон]]=\"\",\"\",100*деректер[[#This Row],[БАҒА]]/деректер[[#This Row],[МИЛЬ]])","v":""}]
[null,"2012-05-01","Саяхат",{"v":10130,"d":"10,130"},"Кеңсе",{"v":10200,"d":"10,200"},"Cherry Street","Иә",null,"",{"$f":"милялар","v":70},{"$f":"IF(OR(LEN(деректер[[#This Row],[ОДОМЕТР 2]]),деректер[[#This Row],[ОДОМЕТР 1]]=\"\"),\"\",IFERROR(деректер[[#This Row],[МИЛЬ]]/деректер[[#This Row],[ГАЛЛОН]],\"\"))","v":""},{"$f":"IF(деректер[[#This Row],[Миль/галлон]]=\"\",\"\",100*деректер[[#This Row],[БАҒА]]/деректер[[#This Row],[МИЛЬ]])","v":""}]
[null,"2012-05-01","Саяхат",{"v":10200,"d":"10,200"},"Смитфилдтер",{"v":10285,"d":"10,285"},"Кеңсе","Иә",null,"",{"$f":"милялар","v":85},{"$f":"IF(OR(LEN(деректер[[#This Row],[ОДОМЕТР 2]]),деректер[[#This Row],[ОДОМЕТР 1]]=\"\"),\"\",IFERROR(деректер[[#This Row],[МИЛЬ]]/деректер[[#This Row],[ГАЛЛОН]],\"\"))","v":""},{"$f":"IF(деректер[[#This Row],[Миль/галлон]]=\"\",\"\",100*деректер[[#This Row],[БАҒА]]/деректер[[#This Row],[МИЛЬ]])","v":""}]
[null,"2012-05-02","Саяхат",{"v":10285,"d":"10,285"},"Кеңсе",{"v":10450,"d":"10,450"},"Colo Vineyard","Иә",null,"",{"$f":"милялар","v":165},{"$f":"IF(OR(LEN(деректер[[#This Row],[ОДОМЕТР 2]]),деректер[[#This Row],[ОДОМЕТР 1]]=\"\"),\"\",IFERROR(деректер[[#This Row],[МИЛЬ]]/деректер[[#This Row],[ГАЛЛОН]],\"\"))","v":""},{"$f":"IF(деректер[[#This Row],[Миль/галлон]]=\"\",\"\",100*деректер[[#This Row],[БАҒА]]/деректер[[#This Row],[МИЛЬ]])","v":""}]
[null,"2012-05-02","Жанармай",{"v":10450,"d":"10,450"},"Shell",{"$nulls":3},{"v":11.2,"d":"11.20"},{"v":55.42,"d":"Т55.42"},{"$f":"милялар","v":650},{"$f":"IF(OR(LEN(деректер[[#This Row],[ОДОМЕТР 2]]),деректер[[#This Row],[ОДОМЕТР 1]]=\"\"),\"\",IFERROR(деректер[[#This Row],[МИЛЬ]]/деректер[[#This Row],[ГАЛЛОН]],\"\"))","v":{"v":58.03571428571429,"d":"58.0"}},{"$f":"IF(деректер[[#This Row],[Миль/галлон]]=\"\",\"\",100*деректер[[#This Row],[БАҒА]]/деректер[[#This Row],[МИЛЬ]])","v":{"v":8.526153846153846,"d":"8.5"}}]
[null,"2012-05-02","Саяхат",{"v":10500,"d":"10,500"},"Colo Vineyard",{"v":10518,"d":"10,518"},"Кеңсе","Иә",null,"",{"$f":"милялар","v":18},{"$f":"IF(OR(LEN(деректер[[#This Row],[ОДОМЕТР 2]]),деректер[[#This Row],[ОДОМЕТР 1]]=\"\"),\"\",IFERROR(деректер[[#This Row],[МИЛЬ]]/деректер[[#This Row],[ГАЛЛОН]],\"\"))","v":""},{"$f":"IF(деректер[[#This Row],[Миль/галлон]]=\"\",\"\",100*деректер[[#This Row],[БАҒА]]/деректер[[#This Row],[МИЛЬ]])","v":""}]
[null,"2012-05-03","Саяхат",{"v":10518,"d":"10,518"},"Кеңсе",{"v":10745,"d":"10,745"},"Кеңсе","Иә",null,"",{"$f":"милялар","v":227},{"$f":"IF(OR(LEN(деректер[[#This Row],[ОДОМЕТР 2]]),деректер[[#This Row],[ОДОМЕТР 1]]=\"\"),\"\",IFERROR(деректер[[#This Row],[МИЛЬ]]/деректер[[#This Row],[ГАЛЛОН]],\"\"))","v":""},{"$f":"IF(деректер[[#This Row],[Миль/галлон]]=\"\",\"\",100*деректер[[#This Row],[БАҒА]]/деректер[[#This Row],[МИЛЬ]])","v":""}]
[null,"2012-05-04","Жанармай",{"v":10745,"d":"10,745"},"Chevron - Main St",{"$nulls":3},{"v":16.6,"d":"16.60"},{"v":69.24,"d":"Т69.24"},{"$f":"милялар","v":295},{"$f":"IF(OR(LEN(деректер[[#This Row],[ОДОМЕТР 2]]),деректер[[#This Row],[ОДОМЕТР 1]]=\"\"),\"\",IFERROR(деректер[[#This Row],[МИЛЬ]]/деректер[[#This Row],[ГАЛЛОН]],\"\"))","v":{"v":17.771084337349397,"d":"17.8"}},{"$f":"IF(деректер[[#This Row],[Миль/галлон]]=\"\",\"\",100*деректер[[#This Row],[БАҒА]]/деректер[[#This Row],[МИЛЬ]])","v":{"v":23.471186440677965,"d":"23.5"}}]
[null,"2012-05-04","Саяхат",{"v":10745,"d":"10,745"},"Кеңсе",{"v":10800,"d":"10,800"},"Портервиль","Иә",null,"",{"$f":"милялар","v":55},{"$f":"IF(OR(LEN(деректер[[#This Row],[ОДОМЕТР 2]]),деректер[[#This Row],[ОДОМЕТР 1]]=\"\"),\"\",IFERROR(деректер[[#This Row],[МИЛЬ]]/деректер[[#This Row],[ГАЛЛОН]],\"\"))","v":""},{"$f":"IF(деректер[[#This Row],[Миль/галлон]]=\"\",\"\",100*деректер[[#This Row],[БАҒА]]/деректер[[#This Row],[МИЛЬ]])","v":""}]
[null,"2012-05-04","Саяхат",{"v":10800,"d":"10,800"},"Портервиль",{"v":10875,"d":"10,875"},"Кеңсе","Иә",null,"",{"$f":"милялар","v":75},{"$f":"IF(OR(LEN(деректер[[#This Row],[ОДОМЕТР 2]]),деректер[[#This Row],[ОДОМЕТР 1]]=\"\"),\"\",IFERROR(деректер[[#This Row],[МИЛЬ]]/деректер[[#This Row],[ГАЛЛОН]],\"\"))","v":""},{"$f":"IF(деректер[[#This Row],[Миль/галлон]]=\"\",\"\",100*деректер[[#This Row],[БАҒА]]/деректер[[#This Row],[МИЛЬ]])","v":""}]
[null,"2012-05-07","Саяхат",{"v":10875,"d":"10,875"},"Кеңсе",{"v":10921,"d":"10,921"},"Cherry Street","Иә",null,"",{"$f":"милялар","v":46},{"$f":"IF(OR(LEN(деректер[[#This Row],[ОДОМЕТР 2]]),деректер[[#This Row],[ОДОМЕТР 1]]=\"\"),\"\",IFERROR(деректер[[#This Row],[МИЛЬ]]/деректер[[#This Row],[ГАЛЛОН]],\"\"))","v":""},{"$f":"IF(деректер[[#This Row],[Миль/галлон]]=\"\",\"\",100*деректер[[#This Row],[БАҒА]]/деректер[[#This Row],[МИЛЬ]])","v":""}]
[null,"2012-05-07","Саяхат",{"v":10921,"d":"10,921"},"Смитфилдтер",{"v":10969,"d":"10,969"},"Кеңсе","Иә",null,"",{"$f":"милялар","v":48},{"$f":"IF(OR(LEN(деректер[[#This Row],[ОДОМЕТР 2]]),деректер[[#This Row],[ОДОМЕТР 1]]=\"\"),\"\",IFERROR(деректер[[#This Row],[МИЛЬ]]/деректер[[#This Row],[ГАЛЛОН]],\"\"))","v":""},{"$f":"IF(деректер[[#This Row],[Миль/галлон]]=\"\",\"\",100*деректер[[#This Row],[БАҒА]]/деректер[[#This Row],[МИЛЬ]])","v":""}]
[null,"2012-05-09","Саяхат",{"v":10969,"d":"10,969"},"Кеңсе",{"v":11000,"d":"11,000"},"Риверсайд","Иә",null,"",{"$f":"милялар","v":31},{"$f":"IF(OR(LEN(деректер[[#This Row],[ОДОМЕТР 2]]),деректер[[#This Row],[ОДОМЕТР 1]]=\"\"),\"\",IFERROR(деректер[[#This Row],[МИЛЬ]]/деректер[[#This Row],[ГАЛЛОН]],\"\"))","v":""},{"$f":"IF(деректер[[#This Row],[Миль/галлон]]=\"\",\"\",100*деректер[[#This Row],[БАҒА]]/деректер[[#This Row],[МИЛЬ]])","v":""}]
[null,"2012-05-09","Саяхат",{"v":11000,"d":"11,000"},"Риверсайд",{"v":11100,"d":"11,100"},"Басты","Жоқ",null,"",{"$f":"милялар","v":100},{"$f":"IF(OR(LEN(деректер[[#This Row],[ОДОМЕТР 2]]),деректер[[#This Row],[ОДОМЕТР 1]]=\"\"),\"\",IFERROR(деректер[[#This Row],[МИЛЬ]]/деректер[[#This Row],[ГАЛЛОН]],\"\"))","v":""},{"$f":"IF(деректер[[#This Row],[Миль/галлон]]=\"\",\"\",100*деректер[[#This Row],[БАҒА]]/деректер[[#This Row],[МИЛЬ]])","v":""}]

{"sheet":"есептеулер","index":2,"n_rows":69,"n_cols":13,"rows_kept":69,"hidden":true}
["*** Бұл парақ жасырын болып қалуы үшін ***"]
[]
[]
[]
[]
[{"$nulls":8},{"$f":"OFFSET(I9,,secondAxis=\"Жанармай бағасы\")","v":"¢/Миль"}]
[{"$nulls":12},2]
[{"$nulls":7},"Саяхат","Жанармай","Жанармай",null,"Көмекші білік: ",{"$f":"REPT(\"Миль/галлон\",M7=1)&REPT(\"Жанармай бағасы\",M7=2)","v":"Жанармай бағасы"}]
[{"$nulls":7},"Жүргізілген миль","Миль/галлон","¢/Миль"]
[null,null,"Төленетін миль: ",{"$f":"SUMIFS(деректер[МИЛЬ],деректер[ТӨЛЕНЕТІН],\"Иә\",деректер[КҮН],\">=\"&periodStart,деректер[КҮН],\"<=\"&periodEnd)","v":820},null,1,{"$f":"periodStart","v":"2012-05-01"},{"$f":"SUMIFS(деректер[МИЛЬ],деректер[КҮН],G10,деректер[ӘРЕКЕТ],$H$8)","v":162},{"$f":"IFERROR(AVERAGEIFS(деректер[Миль/галлон],деректер[КҮН],G10,деректер[ӘРЕКЕТ],$I$8),NA())","v":{"$error":"#N/A"}},{"$f":"IFERROR(AVERAGEIFS(деректер[¢/МИЛЬ],деректер[КҮН],G10,деректер[ӘРЕКЕТ],$J$8),NA())","v":{"$error":"#N/A"}}]
[null,null,"Жалпы төленетін: ",{"$f":"D10*ReimbursementPerMile/100","v":{"v":442.8,"d":"Т442.80"}},null,2,{"$f":"G10+1","v":"2012-05-02"},{"$f":"SUMIFS(деректер[МИЛЬ],деректер[КҮН],G11,деректер[ӘРЕКЕТ],$H$8)","v":183},{"$f":"IFERROR(AVERAGEIFS(деректер[Миль/галлон],деректер[КҮН],G11,деректер[ӘРЕКЕТ],$I$8),NA())","v":{"v":58.03571428571429,"d":"58.0"}},{"$f":"IFERROR(AVERAGEIFS(деректер[¢/МИЛЬ],деректер[КҮН],G11,деректер[ӘРЕКЕТ],$J$8),NA())","v":{"v":8.526153846153846,"d":"8.5"}}]
[{"$nulls":5},3,"2012-05-03",{"$f":"SUMIFS(деректер[МИЛЬ],деректер[КҮН],G12,деректер[ӘРЕКЕТ],$H$8)","v":227},{"$f":"IFERROR(AVERAGEIFS(деректер[Миль/галлон],деректер[КҮН],G12,деректер[ӘРЕКЕТ],$I$8),NA())","v":{"$error":"#N/A"}},{"$f":"IFERROR(AVERAGEIFS(деректер[¢/МИЛЬ],деректер[КҮН],G12,деректер[ӘРЕКЕТ],$J$8),NA())","v":{"$error":"#N/A"}}]
[{"$nulls":5},4,"2012-05-04",{"$f":"SUMIFS(деректер[МИЛЬ],деректер[КҮН],G13,деректер[ӘРЕКЕТ],$H$8)","v":130},{"$f":"IFERROR(AVERAGEIFS(деректер[Миль/галлон],деректер[КҮН],G13,деректер[ӘРЕКЕТ],$I$8),NA())","v":{"v":17.771084337349397,"d":"17.8"}},{"$f":"IFERROR(AVERAGEIFS(деректер[¢/МИЛЬ],деректер[КҮН],G13,деректер[ӘРЕКЕТ],$J$8),NA())","v":{"v":23.471186440677965,"d":"23.5"}}]
[{"$nulls":5},5,"2012-05-05",{"$f":"SUMIFS(деректер[МИЛЬ],деректер[КҮН],G14,деректер[ӘРЕКЕТ],$H$8)","v":0},{"$f":"IFERROR(AVERAGEIFS(деректер[Миль/галлон],деректер[КҮН],G14,деректер[ӘРЕКЕТ],$I$8),NA())","v":{"$error":"#N/A"}},{"$f":"IFERROR(AVERAGEIFS(деректер[¢/МИЛЬ],деректер[КҮН],G14,деректер[ӘРЕКЕТ],$J$8),NA())","v":{"$error":"#N/A"}}]
[{"$nulls":5},6,"2012-05-06",{"$f":"SUMIFS(деректер[МИЛЬ],деректер[КҮН],G15,деректер[ӘРЕКЕТ],$H$8)","v":0},{"$f":"IFERROR(AVERAGEIFS(деректер[Миль/галлон],деректер[КҮН],G15,деректер[ӘРЕКЕТ],$I$8),NA())","v":{"$error":"#N/A"}},{"$f":"IFERROR(AVERAGEIFS(деректер[¢/МИЛЬ],деректер[КҮН],G15,деректер[ӘРЕКЕТ],$J$8),NA())","v":{"$error":"#N/A"}}]
[{"$nulls":5},7,"2012-05-07",{"$f":"SUMIFS(деректер[МИЛЬ],деректер[КҮН],G16,деректер[ӘРЕКЕТ],$H$8)","v":94},{"$f":"IFERROR(AVERAGEIFS(деректер[Миль/галлон],деректер[КҮН],G16,деректер[ӘРЕКЕТ],$I$8),NA())","v":{"$error":"#N/A"}},{"$f":"IFERROR(AVERAGEIFS(деректер[¢/МИЛЬ],деректер[КҮН],G16,деректер[ӘРЕКЕТ],$J$8),NA())","v":{"$error":"#N/A"}}]
[{"$nulls":5},8,"2012-05-08",{"$f":"SUMIFS(деректер[МИЛЬ],деректер[КҮН],G17,деректер[ӘРЕКЕТ],$H$8)","v":0},{"$f":"IFERROR(AVERAGEIFS(деректер[Миль/галлон],деректер[КҮН],G17,деректер[ӘРЕКЕТ],$I$8),NA())","v":{"$error":"#N/A"}},{"$f":"IFERROR(AVERAGEIFS(деректер[¢/МИЛЬ],деректер[КҮН],G17,деректер[ӘРЕКЕТ],$J$8),NA())","v":{"$error":"#N/A"}}]
[{"$nulls":5},9,"2012-05-09",{"$f":"SUMIFS(деректер[МИЛЬ],деректер[КҮН],G18,деректер[ӘРЕКЕТ],$H$8)","v":131},{"$f":"IFERROR(AVERAGEIFS(деректер[Миль/галлон],деректер[КҮН],G18,деректер[ӘРЕКЕТ],$I$8),NA())","v":{"$error":"#N/A"}},{"$f":"IFERROR(AVERAGEIFS(деректер[¢/МИЛЬ],деректер[КҮН],G18,деректер[ӘРЕКЕТ],$J$8),NA())","v":{"$error":"#N/A"}}]
[{"$nulls":5},10,"2012-05-10",{"$f":"SUMIFS(деректер[МИЛЬ],деректер[КҮН],G19,деректер[ӘРЕКЕТ],$H$8)","v":0},{"$f":"IFERROR(AVERAGEIFS(деректер[Миль/галлон],деректер[КҮН],G19,деректер[ӘРЕКЕТ],$I$8),NA())","v":{"$error":"#N/A"}},{"$f":"IFERROR(AVERAGEIFS(деректер[¢/МИЛЬ],деректер[КҮН],G19,деректер[ӘРЕКЕТ],$J$8),NA())","v":{"$error":"#N/A"}}]
[{"$nulls":5},11,"2012-05-11",{"$f":"SUMIFS(деректер[МИЛЬ],деректер[КҮН],G20,деректер[ӘРЕКЕТ],$H$8)","v":0},{"$f":"IFERROR(AVERAGEIFS(деректер[Миль/галлон],деректер[КҮН],G20,деректер[ӘРЕКЕТ],$I$8),NA())","v":{"$error":"#N/A"}},{"$f":"IFERROR(AVERAGEIFS(деректер[¢/МИЛЬ],деректер[КҮН],G20,деректер[ӘРЕКЕТ],$J$8),NA())","v":{"$error":"#N/A"}}]
[{"$nulls":5},12,"2012-05-12",{"$f":"SUMIFS(деректер[МИЛЬ],деректер[КҮН],G21,деректер[ӘРЕКЕТ],$H$8)","v":0},{"$f":"IFERROR(AVERAGEIFS(деректер[Миль/галлон],деректер[КҮН],G21,деректер[ӘРЕКЕТ],$I$8),NA())","v":{"$error":"#N/A"}},{"$f":"IFERROR(AVERAGEIFS(деректер[¢/МИЛЬ],деректер[КҮН],G21,деректер[ӘРЕКЕТ],$J$8),NA())","v":{"$error":"#N/A"}}]
[{"$nulls":5},13,"2012-05-13",{"$f":"SUMIFS(деректер[МИЛЬ],деректер[КҮН],G22,деректер[ӘРЕКЕТ],$H$8)","v":0},{"$f":"IFERROR(AVERAGEIFS(деректер[Миль/галлон],деректер[КҮН],G22,деректер[ӘРЕКЕТ],$I$8),NA())","v":{"$error":"#N/A"}},{"$f":"IFERROR(AVERAGEIFS(деректер[¢/МИЛЬ],деректер[КҮН],G22,деректер[ӘРЕКЕТ],$J$8),NA())","v":{"$error":"#N/A"}}]
[{"$nulls":5},14,"2012-05-14",{"$f":"SUMIFS(деректер[МИЛЬ],деректер[КҮН],G23,деректер[ӘРЕКЕТ],$H$8)","v":0},{"$f":"IFERROR(AVERAGEIFS(деректер[Миль/галлон],деректер[КҮН],G23,деректер[ӘРЕКЕТ],$I$8),NA())","v":{"$error":"#N/A"}},{"$f":"IFERROR(AVERAGEIFS(деректер[¢/МИЛЬ],деректер[КҮН],G23,деректер[ӘРЕКЕТ],$J$8),NA())","v":{"$error":"#N/A"}}]
[{"$nulls":5},15,"2012-05-15",{"$f":"SUMIFS(деректер[МИЛЬ],деректер[КҮН],G24,деректер[ӘРЕКЕТ],$H$8)","v":0},{"$f":"IFERROR(AVERAGEIFS(деректер[Миль/галлон],деректер[КҮН],G24,деректер[ӘРЕКЕТ],$I$8),NA())","v":{"$error":"#N/A"}},{"$f":"IFERROR(AVERAGEIFS(деректер[¢/МИЛЬ],деректер[КҮН],G24,деректер[ӘРЕКЕТ],$J$8),NA())","v":{"$error":"#N/A"}}]
[{"$nulls":5},16,"2012-05-16",{"$f":"SUMIFS(деректер[МИЛЬ],деректер[КҮН],G25,деректер[ӘРЕКЕТ],$H$8)","v":0},{"$f":"IFERROR(AVERAGEIFS(деректер[Миль/галлон],деректер[КҮН],G25,деректер[ӘРЕКЕТ],$I$8),NA())","v":{"$error":"#N/A"}},{"$f":"IFERROR(AVERAGEIFS(деректер[¢/МИЛЬ],деректер[КҮН],G25,деректер[ӘРЕКЕТ],$J$8),NA())","v":{"$error":"#N/A"}}]
[{"$nulls":5},17,"2012-05-17",{"$f":"SUMIFS(деректер[МИЛЬ],деректер[КҮН],G26,деректер[ӘРЕКЕТ],$H$8)","v":0},{"$f":"IFERROR(AVERAGEIFS(деректер[Миль/галлон],деректер[КҮН],G26,деректер[ӘРЕКЕТ],$I$8),NA())","v":{"$error":"#N/A"}},{"$f":"IFERROR(AVERAGEIFS(деректер[¢/МИЛЬ],деректер[КҮН],G26,деректер[ӘРЕКЕТ],$J$8),NA())","v":{"$error":"#N/A"}}]
[{"$nulls":5},18,"2012-05-18",{"$f":"SUMIFS(деректер[МИЛЬ],деректер[КҮН],G27,деректер[ӘРЕКЕТ],$H$8)","v":0},{"$f":"IFERROR(AVERAGEIFS(деректер[Миль/галлон],деректер[КҮН],G27,деректер[ӘРЕКЕТ],$I$8),NA())","v":{"$error":"#N/A"}},{"$f":"IFERROR(AVERAGEIFS(деректер[¢/МИЛЬ],деректер[КҮН],G27,деректер[ӘРЕКЕТ],$J$8),NA())","v":{"$error":"#N/A"}}]
[{"$nulls":5},19,"2012-05-19",{"$f":"SUMIFS(деректер[МИЛЬ],деректер[КҮН],G28,деректер[ӘРЕКЕТ],$H$8)","v":0},{"$f":"IFERROR(AVERAGEIFS(деректер[Миль/галлон],деректер[КҮН],G28,деректер[ӘРЕКЕТ],$I$8),NA())","v":{"$error":"#N/A"}},{"$f":"IFERROR(AVERAGEIFS(деректер[¢/МИЛЬ],деректер[КҮН],G28,деректер[ӘРЕКЕТ],$J$8),NA())","v":{"$error":"#N/A"}}]
[{"$nulls":5},20,"2012-05-20",{"$f":"SUMIFS(деректер[МИЛЬ],деректер[КҮН],G29,деректер[ӘРЕКЕТ],$H$8)","v":0},{"$f":"IFERROR(AVERAGEIFS(деректер[Миль/галлон],деректер[КҮН],G29,деректер[ӘРЕКЕТ],$I$8),NA())","v":{"$error":"#N/A"}},{"$f":"IFERROR(AVERAGEIFS(деректер[¢/МИЛЬ],деректер[КҮН],G29,деректер[ӘРЕКЕТ],$J$8),NA())","v":{"$error":"#N/A"}}]
[{"$nulls":5},21,"2012-05-21",{"$f":"SUMIFS(деректер[МИЛЬ],деректер[КҮН],G30,деректер[ӘРЕКЕТ],$H$8)","v":0},{"$f":"IFERROR(AVERAGEIFS(деректер[Миль/галлон],деректер[КҮН],G30,деректер[ӘРЕКЕТ],$I$8),NA())","v":{"$error":"#N/A"}},{"$f":"IFERROR(AVERAGEIFS(деректер[¢/МИЛЬ],деректер[КҮН],G30,деректер[ӘРЕКЕТ],$J$8),NA())","v":{"$error":"#N/A"}}]
[{"$nulls":5},22,"2012-05-22",{"$f":"SUMIFS(деректер[МИЛЬ],деректер[КҮН],G31,деректер[ӘРЕКЕТ],$H$8)","v":0},{"$f":"IFERROR(AVERAGEIFS(деректер[Миль/галлон],деректер[КҮН],G31,деректер[ӘРЕКЕТ],$I$8),NA())","v":{"$error":"#N/A"}},{"$f":"IFERROR(AVERAGEIFS(деректер[¢/МИЛЬ],деректер[КҮН],G31,деректер[ӘРЕКЕТ],$J$8),NA())","v":{"$error":"#N/A"}}]
[{"$nulls":5},23,"2012-05-23",{"$f":"SUMIFS(деректер[МИЛЬ],деректер[КҮН],G32,деректер[ӘРЕКЕТ],$H$8)","v":0},{"$f":"IFERROR(AVERAGEIFS(деректер[Миль/галлон],деректер[КҮН],G32,деректер[ӘРЕКЕТ],$I$8),NA())","v":{"$error":"#N/A"}},{"$f":"IFERROR(AVERAGEIFS(деректер[¢/МИЛЬ],деректер[КҮН],G32,деректер[ӘРЕКЕТ],$J$8),NA())","v":{"$error":"#N/A"}}]
[{"$nulls":5},24,"2012-05-24",{"$f":"SUMIFS(деректер[МИЛЬ],деректер[КҮН],G33,деректер[ӘРЕКЕТ],$H$8)","v":0},{"$f":"IFERROR(AVERAGEIFS(деректер[Миль/галлон],деректер[КҮН],G33,деректер[ӘРЕКЕТ],$I$8),NA())","v":{"$error":"#N/A"}},{"$f":"IFERROR(AVERAGEIFS(деректер[¢/МИЛЬ],деректер[КҮН],G33,деректер[ӘРЕКЕТ],$J$8),NA())","v":{"$error":"#N/A"}}]
[{"$nulls":5},25,"2012-05-25",{"$f":"SUMIFS(деректер[МИЛЬ],деректер[КҮН],G34,деректер[ӘРЕКЕТ],$H$8)","v":0},{"$f":"IFERROR(AVERAGEIFS(деректер[Миль/галлон],деректер[КҮН],G34,деректер[ӘРЕКЕТ],$I$8),NA())","v":{"$error":"#N/A"}},{"$f":"IFERROR(AVERAGEIFS(деректер[¢/МИЛЬ],деректер[КҮН],G34,деректер[ӘРЕКЕТ],$J$8),NA())","v":{"$error":"#N/A"}}]
[{"$nulls":5},26,"2012-05-26",{"$f":"SUMIFS(деректер[МИЛЬ],деректер[КҮН],G35,деректер[ӘРЕКЕТ],$H$8)","v":0},{"$f":"IFERROR(AVERAGEIFS(деректер[Миль/галлон],деректер[КҮН],G35,деректер[ӘРЕКЕТ],$I$8),NA())","v":{"$error":"#N/A"}},{"$f":"IFERROR(AVERAGEIFS(деректер[¢/МИЛЬ],деректер[КҮН],G35,деректер[ӘРЕКЕТ],$J$8),NA())","v":{"$error":"#N/A"}}]
[{"$nulls":5},27,"2012-05-27",{"$f":"SUMIFS(деректер[МИЛЬ],деректер[КҮН],G36,деректер[ӘРЕКЕТ],$H$8)","v":0},{"$f":"IFERROR(AVERAGEIFS(деректер[Миль/галлон],деректер[КҮН],G36,деректер[ӘРЕКЕТ],$I$8),NA())","v":{"$error":"#N/A"}},{"$f":"IFERROR(AVERAGEIFS(деректер[¢/МИЛЬ],деректер[КҮН],G36,деректер[ӘРЕКЕТ],$J$8),NA())","v":{"$error":"#N/A"}}]
[{"$nulls":5},28,"2012-05-28",{"$f":"SUMIFS(деректер[МИЛЬ],деректер[КҮН],G37,деректер[ӘРЕКЕТ],$H$8)","v":0},{"$f":"IFERROR(AVERAGEIFS(деректер[Миль/галлон],деректер[КҮН],G37,деректер[ӘРЕКЕТ],$I$8),NA())","v":{"$error":"#N/A"}},{"$f":"IFERROR(AVERAGEIFS(деректер[¢/МИЛЬ],деректер[КҮН],G37,деректер[ӘРЕКЕТ],$J$8),NA())","v":{"$error":"#N/A"}}]
[{"$nulls":5},29,"2012-05-29",{"$f":"SUMIFS(деректер[МИЛЬ],деректер[КҮН],G38,деректер[ӘРЕКЕТ],$H$8)","v":0},{"$f":"IFERROR(AVERAGEIFS(деректер[Миль/галлон],деректер[КҮН],G38,деректер[ӘРЕКЕТ],$I$8),NA())","v":{"$error":"#N/A"}},{"$f":"IFERROR(AVERAGEIFS(деректер[¢/МИЛЬ],деректер[КҮН],G38,деректер[ӘРЕКЕТ],$J$8),NA())","v":{"$error":"#N/A"}}]
[{"$nulls":5},30,"2012-05-30",{"$f":"SUMIFS(деректер[МИЛЬ],деректер[КҮН],G39,деректер[ӘРЕКЕТ],$H$8)","v":0},{"$f":"IFERROR(AVERAGEIFS(деректер[Миль/галлон],деректер[КҮН],G39,деректер[ӘРЕКЕТ],$I$8),NA())","v":{"$error":"#N/A"}},{"$f":"IFERROR(AVERAGEIFS(деректер[¢/МИЛЬ],деректер[КҮН],G39,деректер[ӘРЕКЕТ],$J$8),NA())","v":{"$error":"#N/A"}}]
[{"$nulls":5},31,"2012-05-31",{"$f":"SUMIFS(деректер[МИЛЬ],деректер[КҮН],G40,деректер[ӘРЕКЕТ],$H$8)","v":0},{"$f":"IFERROR(AVERAGEIFS(деректер[Миль/галлон],деректер[КҮН],G40,деректер[ӘРЕКЕТ],$I$8),NA())","v":{"$error":"#N/A"}},{"$f":"IFERROR(AVERAGEIFS(деректер[¢/МИЛЬ],деректер[КҮН],G40,деректер[ӘРЕКЕТ],$J$8),NA())","v":{"$error":"#N/A"}}]
[{"$nulls":5},32,"2012-06-01",{"$f":"SUMIFS(деректер[МИЛЬ],деректер[КҮН],G41,деректер[ӘРЕКЕТ],$H$8)","v":0},{"$f":"IFERROR(AVERAGEIFS(деректер[Миль/галлон],деректер[КҮН],G41,деректер[ӘРЕКЕТ],$I$8),NA())","v":{"$error":"#N/A"}},{"$f":"IFERROR(AVERAGEIFS(деректер[¢/МИЛЬ],деректер[КҮН],G41,деректер[ӘРЕКЕТ],$J$8),NA())","v":{"$error":"#N/A"}}]
[{"$nulls":5},33,"2012-06-02",{"$f":"SUMIFS(деректер[МИЛЬ],деректер[КҮН],G42,деректер[ӘРЕКЕТ],$H$8)","v":0},{"$f":"IFERROR(AVERAGEIFS(деректер[Миль/галлон],деректер[КҮН],G42,деректер[ӘРЕКЕТ],$I$8),NA())","v":{"$error":"#N/A"}},{"$f":"IFERROR(AVERAGEIFS(деректер[¢/МИЛЬ],деректер[КҮН],G42,деректер[ӘРЕКЕТ],$J$8),NA())","v":{"$error":"#N/A"}}]
[{"$nulls":5},34,{"$f":"G42+1","v":"2012-06-03"},{"$f":"SUMIFS(деректер[МИЛЬ],деректер[КҮН],G43,деректер[ӘРЕКЕТ],$H$8)","v":0},{"$f":"IFERROR(AVERAGEIFS(деректер[Миль/галлон],деректер[КҮН],G43,деректер[ӘРЕКЕТ],$I$8),NA())","v":{"$error":"#N/A"}},{"$f":"IFERROR(AVERAGEIFS(деректер[¢/МИЛЬ],деректер[КҮН],G43,деректер[ӘРЕКЕТ],$J$8),NA())","v":{"$error":"#N/A"}}]
[{"$nulls":5},35,"2012-06-04",{"$f":"SUMIFS(деректер[МИЛЬ],деректер[КҮН],G44,деректер[ӘРЕКЕТ],$H$8)","v":0},{"$f":"IFERROR(AVERAGEIFS(деректер[Миль/галлон],деректер[КҮН],G44,деректер[ӘРЕКЕТ],$I$8),NA())","v":{"$error":"#N/A"}},{"$f":"IFERROR(AVERAGEIFS(деректер[¢/МИЛЬ],деректер[КҮН],G44,деректер[ӘРЕКЕТ],$J$8),NA())","v":{"$error":"#N/A"}}]
[{"$nulls":5},36,"2012-06-05",{"$f":"SUMIFS(деректер[МИЛЬ],деректер[КҮН],G45,деректер[ӘРЕКЕТ],$H$8)","v":0},{"$f":"IFERROR(AVERAGEIFS(деректер[Миль/галлон],деректер[КҮН],G45,деректер[ӘРЕКЕТ],$I$8),NA())","v":{"$error":"#N/A"}},{"$f":"IFERROR(AVERAGEIFS(деректер[¢/МИЛЬ],деректер[КҮН],G45,деректер[ӘРЕКЕТ],$J$8),NA())","v":{"$error":"#N/A"}}]
[{"$nulls":5},37,"2012-06-06",{"$f":"SUMIFS(деректер[МИЛЬ],деректер[КҮН],G46,деректер[ӘРЕКЕТ],$H$8)","v":0},{"$f":"IFERROR(AVERAGEIFS(деректер[Миль/галлон],деректер[КҮН],G46,деректер[ӘРЕКЕТ],$I$8),NA())","v":{"$error":"#N/A"}},{"$f":"IFERROR(AVERAGEIFS(деректер[¢/МИЛЬ],деректер[КҮН],G46,деректер[ӘРЕКЕТ],$J$8),NA())","v":{"$error":"#N/A"}}]
[{"$nulls":5},38,"2012-06-07",{"$f":"SUMIFS(деректер[МИЛЬ],деректер[КҮН],G47,деректер[ӘРЕКЕТ],$H$8)","v":0},{"$f":"IFERROR(AVERAGEIFS(деректер[Миль/галлон],деректер[КҮН],G47,деректер[ӘРЕКЕТ],$I$8),NA())","v":{"$error":"#N/A"}},{"$f":"IFERROR(AVERAGEIFS(деректер[¢/МИЛЬ],деректер[КҮН],G47,деректер[ӘРЕКЕТ],$J$8),NA())","v":{"$error":"#N/A"}}]
[{"$nulls":5},39,"2012-06-08",{"$f":"SUMIFS(деректер[МИЛЬ],деректер[КҮН],G48,деректер[ӘРЕКЕТ],$H$8)","v":0},{"$f":"IFERROR(AVERAGEIFS(деректер[Миль/галлон],деректер[КҮН],G48,деректер[ӘРЕКЕТ],$I$8),NA())","v":{"$error":"#N/A"}},{"$f":"IFERROR(AVERAGEIFS(деректер[¢/МИЛЬ],деректер[КҮН],G48,деректер[ӘРЕКЕТ],$J$8),NA())","v":{"$error":"#N/A"}}]
[{"$nulls":5},40,"2012-06-09",{"$f":"SUMIFS(деректер[МИЛЬ],деректер[КҮН],G49,деректер[ӘРЕКЕТ],$H$8)","v":0},{"$f":"IFERROR(AVERAGEIFS(деректер[Миль/галлон],деректер[КҮН],G49,деректер[ӘРЕКЕТ],$I$8),NA())","v":{"$error":"#N/A"}},{"$f":"IFERROR(AVERAGEIFS(деректер[¢/МИЛЬ],деректер[КҮН],G49,деректер[ӘРЕКЕТ],$J$8),NA())","v":{"$error":"#N/A"}}]
[{"$nulls":5},41,"2012-06-10",{"$f":"SUMIFS(деректер[МИЛЬ],деректер[КҮН],G50,деректер[ӘРЕКЕТ],$H$8)","v":0},{"$f":"IFERROR(AVERAGEIFS(деректер[Миль/галлон],деректер[КҮН],G50,деректер[ӘРЕКЕТ],$I$8),NA())","v":{"$error":"#N/A"}},{"$f":"IFERROR(AVERAGEIFS(деректер[¢/МИЛЬ],деректер[КҮН],G50,деректер[ӘРЕКЕТ],$J$8),NA())","v":{"$error":"#N/A"}}]
[{"$nulls":5},42,"2012-06-11",{"$f":"SUMIFS(деректер[МИЛЬ],деректер[КҮН],G51,деректер[ӘРЕКЕТ],$H$8)","v":0},{"$f":"IFERROR(AVERAGEIFS(деректер[Миль/галлон],деректер[КҮН],G51,деректер[ӘРЕКЕТ],$I$8),NA())","v":{"$error":"#N/A"}},{"$f":"IFERROR(AVERAGEIFS(деректер[¢/МИЛЬ],деректер[КҮН],G51,деректер[ӘРЕКЕТ],$J$8),NA())","v":{"$error":"#N/A"}}]
[{"$nulls":5},43,"2012-06-12",{"$f":"SUMIFS(деректер[МИЛЬ],деректер[КҮН],G52,деректер[ӘРЕКЕТ],$H$8)","v":0},{"$f":"IFERROR(AVERAGEIFS(деректер[Миль/галлон],деректер[КҮН],G52,деректер[ӘРЕКЕТ],$I$8),NA())","v":{"$error":"#N/A"}},{"$f":"IFERROR(AVERAGEIFS(деректер[¢/МИЛЬ],деректер[КҮН],G52,деректер[ӘРЕКЕТ],$J$8),NA())","v":{"$error":"#N/A"}}]
[{"$nulls":5},44,"2012-06-13",{"$f":"SUMIFS(деректер[МИЛЬ],деректер[КҮН],G53,деректер[ӘРЕКЕТ],$H$8)","v":0},{"$f":"IFERROR(AVERAGEIFS(деректер[Миль/галлон],деректер[КҮН],G53,деректер[ӘРЕКЕТ],$I$8),NA())","v":{"$error":"#N/A"}},{"$f":"IFERROR(AVERAGEIFS(деректер[¢/МИЛЬ],деректер[КҮН],G53,деректер[ӘРЕКЕТ],$J$8),NA())","v":{"$error":"#N/A"}}]
[{"$nulls":5},45,"2012-06-14",{"$f":"SUMIFS(деректер[МИЛЬ],деректер[КҮН],G54,деректер[ӘРЕКЕТ],$H$8)","v":0},{"$f":"IFERROR(AVERAGEIFS(деректер[Миль/галлон],деректер[КҮН],G54,деректер[ӘРЕКЕТ],$I$8),NA())","v":{"$error":"#N/A"}},{"$f":"IFERROR(AVERAGEIFS(деректер[¢/МИЛЬ],деректер[КҮН],G54,деректер[ӘРЕКЕТ],$J$8),NA())","v":{"$error":"#N/A"}}]
[{"$nulls":5},46,"2012-06-15",{"$f":"SUMIFS(деректер[МИЛЬ],деректер[КҮН],G55,деректер[ӘРЕКЕТ],$H$8)","v":0},{"$f":"IFERROR(AVERAGEIFS(деректер[Миль/галлон],деректер[КҮН],G55,деректер[ӘРЕКЕТ],$I$8),NA())","v":{"$error":"#N/A"}},{"$f":"IFERROR(AVERAGEIFS(деректер[¢/МИЛЬ],деректер[КҮН],G55,деректер[ӘРЕКЕТ],$J$8),NA())","v":{"$error":"#N/A"}}]
[{"$nulls":5},47,"2012-06-16",{"$f":"SUMIFS(деректер[МИЛЬ],деректер[КҮН],G56,деректер[ӘРЕКЕТ],$H$8)","v":0},{"$f":"IFERROR(AVERAGEIFS(деректер[Миль/галлон],деректер[КҮН],G56,деректер[ӘРЕКЕТ],$I$8),NA())","v":{"$error":"#N/A"}},{"$f":"IFERROR(AVERAGEIFS(деректер[¢/МИЛЬ],деректер[КҮН],G56,деректер[ӘРЕКЕТ],$J$8),NA())","v":{"$error":"#N/A"}}]
[{"$nulls":5},48,"2012-06-17",{"$f":"SUMIFS(деректер[МИЛЬ],деректер[КҮН],G57,деректер[ӘРЕКЕТ],$H$8)","v":0},{"$f":"IFERROR(AVERAGEIFS(деректер[Миль/галлон],деректер[КҮН],G57,деректер[ӘРЕКЕТ],$I$8),NA())","v":{"$error":"#N/A"}},{"$f":"IFERROR(AVERAGEIFS(деректер[¢/МИЛЬ],деректер[КҮН],G57,деректер[ӘРЕКЕТ],$J$8),NA())","v":{"$error":"#N/A"}}]
[{"$nulls":5},49,"2012-06-18",{"$f":"SUMIFS(деректер[МИЛЬ],деректер[КҮН],G58,деректер[ӘРЕКЕТ],$H$8)","v":0},{"$f":"IFERROR(AVERAGEIFS(деректер[Миль/галлон],деректер[КҮН],G58,деректер[ӘРЕКЕТ],$I$8),NA())","v":{"$error":"#N/A"}},{"$f":"IFERROR(AVERAGEIFS(деректер[¢/МИЛЬ],деректер[КҮН],G58,деректер[ӘРЕКЕТ],$J$8),NA())","v":{"$error":"#N/A"}}]
[{"$nulls":5},50,"2012-06-19",{"$f":"SUMIFS(деректер[МИЛЬ],деректер[КҮН],G59,деректер[ӘРЕКЕТ],$H$8)","v":0},{"$f":"IFERROR(AVERAGEIFS(деректер[Миль/галлон],деректер[КҮН],G59,деректер[ӘРЕКЕТ],$I$8),NA())","v":{"$error":"#N/A"}},{"$f":"IFERROR(AVERAGEIFS(деректер[¢/МИЛЬ],деректер[КҮН],G59,деректер[ӘРЕКЕТ],$J$8),NA())","v":{"$error":"#N/A"}}]
[{"$nulls":5},51,"2012-06-20",{"$f":"SUMIFS(деректер[МИЛЬ],деректер[КҮН],G60,деректер[ӘРЕКЕТ],$H$8)","v":0},{"$f":"IFERROR(AVERAGEIFS(деректер[Миль/галлон],деректер[КҮН],G60,деректер[ӘРЕКЕТ],$I$8),NA())","v":{"$error":"#N/A"}},{"$f":"IFERROR(AVERAGEIFS(деректер[¢/МИЛЬ],деректер[КҮН],G60,деректер[ӘРЕКЕТ],$J$8),NA())","v":{"$error":"#N/A"}}]
[{"$nulls":5},52,"2012-06-21",{"$f":"SUMIFS(деректер[МИЛЬ],деректер[КҮН],G61,деректер[ӘРЕКЕТ],$H$8)","v":0},{"$f":"IFERROR(AVERAGEIFS(деректер[Миль/галлон],деректер[КҮН],G61,деректер[ӘРЕКЕТ],$I$8),NA())","v":{"$error":"#N/A"}},{"$f":"IFERROR(AVERAGEIFS(деректер[¢/МИЛЬ],деректер[КҮН],G61,деректер[ӘРЕКЕТ],$J$8),NA())","v":{"$error":"#N/A"}}]
[{"$nulls":5},53,"2012-06-22",{"$f":"SUMIFS(деректер[МИЛЬ],деректер[КҮН],G62,деректер[ӘРЕКЕТ],$H$8)","v":0},{"$f":"IFERROR(AVERAGEIFS(деректер[Миль/галлон],деректер[КҮН],G62,деректер[ӘРЕКЕТ],$I$8),NA())","v":{"$error":"#N/A"}},{"$f":"IFERROR(AVERAGEIFS(деректер[¢/МИЛЬ],деректер[КҮН],G62,деректер[ӘРЕКЕТ],$J$8),NA())","v":{"$error":"#N/A"}}]
[{"$nulls":5},54,"2012-06-23",{"$f":"SUMIFS(деректер[МИЛЬ],деректер[КҮН],G63,деректер[ӘРЕКЕТ],$H$8)","v":0},{"$f":"IFERROR(AVERAGEIFS(деректер[Миль/галлон],деректер[КҮН],G63,деректер[ӘРЕКЕТ],$I$8),NA())","v":{"$error":"#N/A"}},{"$f":"IFERROR(AVERAGEIFS(деректер[¢/МИЛЬ],деректер[КҮН],G63,деректер[ӘРЕКЕТ],$J$8),NA())","v":{"$error":"#N/A"}}]
[{"$nulls":5},55,"2012-06-24",{"$f":"SUMIFS(деректер[МИЛЬ],деректер[КҮН],G64,деректер[ӘРЕКЕТ],$H$8)","v":0},{"$f":"IFERROR(AVERAGEIFS(деректер[Миль/галлон],деректер[КҮН],G64,деректер[ӘРЕКЕТ],$I$8),NA())","v":{"$error":"#N/A"}},{"$f":"IFERROR(AVERAGEIFS(деректер[¢/МИЛЬ],деректер[КҮН],G64,деректер[ӘРЕКЕТ],$J$8),NA())","v":{"$error":"#N/A"}}]
[{"$nulls":5},56,"2012-06-25",{"$f":"SUMIFS(деректер[МИЛЬ],деректер[КҮН],G65,деректер[ӘРЕКЕТ],$H$8)","v":0},{"$f":"IFERROR(AVERAGEIFS(деректер[Миль/галлон],деректер[КҮН],G65,деректер[ӘРЕКЕТ],$I$8),NA())","v":{"$error":"#N/A"}},{"$f":"IFERROR(AVERAGEIFS(деректер[¢/МИЛЬ],деректер[КҮН],G65,деректер[ӘРЕКЕТ],$J$8),NA())","v":{"$error":"#N/A"}}]
[{"$nulls":5},57,"2012-06-26",{"$f":"SUMIFS(деректер[МИЛЬ],деректер[КҮН],G66,деректер[ӘРЕКЕТ],$H$8)","v":0},{"$f":"IFERROR(AVERAGEIFS(деректер[Миль/галлон],деректер[КҮН],G66,деректер[ӘРЕКЕТ],$I$8),NA())","v":{"$error":"#N/A"}},{"$f":"IFERROR(AVERAGEIFS(деректер[¢/МИЛЬ],деректер[КҮН],G66,деректер[ӘРЕКЕТ],$J$8),NA())","v":{"$error":"#N/A"}}]
[{"$nulls":5},58,"2012-06-27",{"$f":"SUMIFS(деректер[МИЛЬ],деректер[КҮН],G67,деректер[ӘРЕКЕТ],$H$8)","v":0},{"$f":"IFERROR(AVERAGEIFS(деректер[Миль/галлон],деректер[КҮН],G67,деректер[ӘРЕКЕТ],$I$8),NA())","v":{"$error":"#N/A"}},{"$f":"IFERROR(AVERAGEIFS(деректер[¢/МИЛЬ],деректер[КҮН],G67,деректер[ӘРЕКЕТ],$J$8),NA())","v":{"$error":"#N/A"}}]
[{"$nulls":5},59,"2012-06-28",{"$f":"SUMIFS(деректер[МИЛЬ],деректер[КҮН],G68,деректер[ӘРЕКЕТ],$H$8)","v":0},{"$f":"IFERROR(AVERAGEIFS(деректер[Миль/галлон],деректер[КҮН],G68,деректер[ӘРЕКЕТ],$I$8),NA())","v":{"$error":"#N/A"}},{"$f":"IFERROR(AVERAGEIFS(деректер[¢/МИЛЬ],деректер[КҮН],G68,деректер[ӘРЕКЕТ],$J$8),NA())","v":{"$error":"#N/A"}}]
[{"$nulls":5},60,"2012-06-29",{"$f":"SUMIFS(деректер[МИЛЬ],деректер[КҮН],G69,деректер[ӘРЕКЕТ],$H$8)","v":0},{"$f":"IFERROR(AVERAGEIFS(деректер[Миль/галлон],деректер[КҮН],G69,деректер[ӘРЕКЕТ],$I$8),NA())","v":{"$error":"#N/A"}},{"$f":"IFERROR(AVERAGEIFS(деректер[¢/МИЛЬ],деректер[КҮН],G69,деректер[ӘРЕКЕТ],$J$8),NA())","v":{"$error":"#N/A"}}]